Workbook

Sheet Sheet1
A1: 凌海市面向社会公开招聘教师面试成绩单
A2: 序号 | B2: 准考证号 | C2: 姓名 | D2: 报考单位名称 | E2: 岗位代码 | F2: 笔试成绩 | G2: 笔试*0.4 | H2: 面试成绩 | I2: 面试*0.6 | J2: 总成绩 | K2: 排名
A3: 1 | B3: 2022081700111 | C3: 杨迎 | D3: 凌海市第一高级中学-生物教师 | E3: 2101 | F3: 81.68 | G3: =F:F*0.4 -> 32.67 | H3: 87.2 | I3: =H:H*0.6 -> 52.32 | J3: =G:G+I:I -> 84.99 | K3: 1
A4: 2 | B4: 2022081700107 | C4: 陈思洋 | D4: 凌海市第一高级中学-生物教师 | E4: 2101 | F4: 78 | G4: =F:F*0.4 -> 31.20 | H4: 81 | I4: =H:H*0.6 -> 48.6 | J4: =G:G+I:I -> 79.80 | K4: 2
A5: 3 | B5: 2022081700121 | C5: 李佳莹 | D5: 凌海市第一高级中学-语文教师 | E5: 2102 | F5: 89.39 | G5: =F:F*0.4 -> 35.76 | H5: 89.6 | I5: =H:H*0.6 -> 53.76 | J5: =G:G+I:I -> 89.52 | K5: 1
A6: 4 | B6: 2022081700120 | C6: 苏畅 | D6: 凌海市第一高级中学-语文教师 | E6: 2102 | F6: 78.58 | G6: 31.43 | H6: 87.3 | I6: 52.38 | J6: 83.81 | K6: 2
A7: 5 | B7: 2022081700221 | C7: 张晋 | D7: 凌海市第一高级中学-数学教师 | E7: 2103 | F7: 85.05 | G7: =F:F*0.4 -> 34.02 | H7: 86.6 | I7: =H:H*0.6 -> 51.96 | J7: =G:G+I:I -> 85.98 | K7: 1
A8: 6 | B8: 2022081700307 | C8: 金威 | D8: 凌海市第一高级中学-数学教师 | E8: 2103 | F8: 80.71 | G8: 32.28 | H8: 88.8 | I8: 53.28 | J8: 85.56 | K8: 2 | S8: x
A9: 7 | B9: 2022081700229 | C9: 申英姿 | D9: 凌海市第一高级中学-数学教师 | E9: 2103 | F9: 79.34 | G9: 31.74 | H9: 89.6 | I9: 53.76 | J9: 85.50 | K9: 3
A10: 8 | B10: 2022081700305 | C10: 岳明昆 | D10: 凌海市第一高级中学-数学教师 | E10: 2103 | F10: 77.39 | G10: 30.96 | H10: 87 | I10: 52.2 | J10: 83.16 | K10: 4
A11: 9 | B11: 2022081700811 | C11: 刘奕存 | D11: 凌海市第一高级中学-英语教师 | E11: 2104 | F11: 92.5 | G11: 37.00 | H11: 84.6 | I11: 50.76 | J11: 87.76 | K11: 1
A12: 10 | B12: 2022081700519 | C12: 王蕊 | D12: 凌海市第一高级中学-英语教师 | E12: 2104 | F12: 89.18 | G12: 35.67 | H12: 84.4 | I12: 50.64 | J12: 86.31 | K12: 2
A13: 11 | B13: 2022081700314 | C13: 孔迎 | D13: 凌海市第一高级中学-英语教师 | E13: 2104 | F13: 88.67 | G13: 35.47 | H13: 83.4 | I13: 50.04 | J13: 85.51 | K13: 3
A14: 12 | B14: 2022081700620 | C14: 苏楠 | D14: 凌海市第一高级中学-英语教师 | E14: 2104 | F14: 94.95 | G14: 37.98 | H14: 73.8 | I14: 44.28 | J14: 82.26 | K14: 4
A15: 13 | B15: 2022081700929 | C15: 吴静 | D15: 凌海市第一高级中学-化学教师 | E15: 2105 | F15: 83.87 | G15: 33.55 | H15: 91 | I15: 54.6 | J15: 88.15 | K15: 1
A16: 14 | B16: 2022081700901 | C16: 白玉杰 | D16: 凌海市第一高级中学-化学教师 | E16: 2105 | F16: 83.67 | G16: 33.47 | H16: 86.8 | I16: 52.08 | J16: 85.55 | K16: 2
A17: 15 | B17: 2022081700903 | C17: 刘星遇 | D17: 凌海市第一高级中学-化学教师 | E17: 2105 | F17: 84.79 | G17: 33.92 | H17: 84.2 | I17: 50.52 | J17: 84.44 | K17: 3
A18: 16 | B18: 2022081700914 | C18: 高思旸 | D18: 凌海市第一高级中学-化学教师 | E18: 2105 | F18: 86.73 | G18: 34.69 | H18: 82.7 | I18: 49.62 | J18: 84.31 | K18: 4
A19: 17 | B19: 2022081700902 | C19: 谷博涵 | D19: 凌海市第一高级中学-化学教师 | E19: 2105 | F19: 86.03 | G19: 34.41 | H19: 79.9 | I19: 47.94 | J19: 82.35 | K19: 5
A20: 18 | B20: 2022081700922 | C20: 曹芷怡 | D20: 凌海市第一高级中学-化学教师 | E20: 2105 | F20: 84.08 | G20: 33.63 | H20: 0 | I20: 0 | J20: 33.63 | K20: 6
A21: 19 | B21: 2022081701309 | C21: 王丽欣 | D21: 凌海市第一高级中学-体育教师 | E21: 2106 | F21: 78.31 | G21: 31.32 | H21: 88.2 | I21: 52.92 | J21: 84.24 | K21: 1
A22: 20 | B22: 2022081701308 | C22: 高灿 | D22: 凌海市第一高级中学-体育教师 | E22: 2106 | F22: 74.43 | G22: 29.77 | H22: 89.2 | I22: 53.52 | J22: 83.29 | K22: 2
A23: 21 | B23: 2022081701219 | C23: 张皓亮 | D23: 凌海市第一高级中学-体育教师 | E23: 2106 | F23: 75.46 | G23: 30.18 | H23: 84.2 | I23: 50.52 | J23: 80.70 | K23: 3
A24: 22 | B24: 2022081701127 | C24: 马逸伦 | D24: 凌海市第一高级中学-体育教师 | E24: 2106 | F24: 77.34 | G24: 30.94 | H24: 0 | I24: 0 | J24: 30.94 | K24: 4
A25: 23 | B25: 2022081701504 | C25: 何思源 | D25: 凌海市第二高级中学-物理教师 | E25: 2107 | F25: 85.11 | G25: 34.04 | H25: 88.6 | I25: 53.16 | J25: 87.20 | K25: 1
A26: 24 | B26: 2022081701314 | C26: 陈思 | D26: 凌海市第二高级中学-物理教师 | E26: 2107 | F26: 84.84 | G26: 33.94 | H26: 85 | I26: 51 | J26: 84.94 | K26: 2
A27: 25 | B27: 2022081701405 | C27: 高莹 | D27: 凌海市第二高级中学-物理教师 | E27: 2107 | F27: 80.25 | G27: 32.10 | H27: 85.8 | I27: 51.48 | J27: 83.58 | K27: 3
A28: 26 | B28: 2022081701323 | C28: 项莹莹 | D28: 凌海市第二高级中学-物理教师 | E28: 2107 | F28: 84.13 | G28: 33.65 | H28: 83 | I28: 49.8 | J28: 83.45 | K28: 4
A29: 27 | B29: 2022081701429 | C29: 周姗姗 | D29: 凌海市第二高级中学-物理教师 | E29: 2107 | F29: 85.56 | G29: 34.22 | H29: 79.2 | I29: 47.52 | J29: 81.74 | K29: 5
A30: 28 | B30: 2022081701411 | C30: 贾疏桐 | D30: 凌海市第二高级中学-物理教师 | E30: 2107 | F30: 77.39 | G30: 30.96 | H30: 83.8 | I30: 50.28 | J30: 81.24 | K30: 6
A31: 29 | B31: 2022081701409 | C31: 朱恒飞 | D31: 凌海市第二高级中学-物理教师 | E31: 2107 | F31: 77.14 | G31: 30.86 | H31: 82.9 | I31: 49.74 | J31: 80.60 | K31: 7
A32: 30 | B32: 2022081701315 | C32: 王欣桐 | D32: 凌海市第二高级中学-物理教师 | E32: 2107 | F32: 79.48 | G32: 31.79 | H32: 77 | I32: 46.2 | J32: 77.99 | K32: 8
A33: 31 | B33: 2022081701613 | C33: 王瑛 | D33: 凌海市第二高级中学-生物教师 | E33: 2108 | F33: 82.76 | G33: 33.10 | H33: 86.3 | I33: 51.78 | J33: 84.88 | K33: 1
A34: 32 | B34: 2022081701612 | C34: 冯梓渊 | D34: 凌海市第二高级中学-生物教师 | E34: 2108 | F34: 80.71 | G34: 32.28 | H34: 84.4 | I34: 50.64 | J34: 82.92 | K34: 2
A35: 33 | B35: 2022081701524 | C35: 蔡明 | D35: 凌海市第二高级中学-生物教师 | E35: 2108 | F35: 83.62 | G35: 33.45 | H35: 82.4 | I35: 49.44 | J35: 82.89 | K35: 3
A36: 34 | B36: 2022081701529 | C36: 郭圆圆 | D36: 凌海市第二高级中学-生物教师 | E36: 2108 | F36: 79.54 | G36: 31.82 | H36: 0 | I36: 0 | J36: 31.82 | K36: 4
A37: 35 | B37: 2022081701810 | C37: 徐振宇 | D37: 凌海市第二高级中学-化学教师 | E37: 2109 | F37: 92.55 | G37: 37.02 | H37: 88 | I37: 52.8 | J37: 89.82 | K37: 1
A38: 36 | B38: 2022081701905 | C38: 杨丹 | D38: 凌海市第二高级中学-化学教师 | E38: 2109 | F38: 94.95 | G38: 37.98 | H38: 84.6 | I38: 50.76 | J38: 88.74 | K38: 2
A39: 37 | B39: 2022081701708 | C39: 骆宏运 | D39: 凌海市第二高级中学-化学教师 | E39: 2109 | F39: 87.96 | G39: 35.18 | H39: 84.7 | I39: 50.82 | J39: 86.00 | K39: 3
A40: 38 | B40: 2022081701821 | C40: 汪鑫 | D40: 凌海市第二高级中学-化学教师 | E40: 2109 | F40: 83.87 | G40: 33.55 | H40: 86.2 | I40: 51.72 | J40: 85.27 | K40: 4
A41: 39 | B41: 2022081701904 | C41: 董世儒 | D41: 凌海市第二高级中学-化学教师 | E41: 2109 | F41: 84.84 | G41: 33.94 | H41: 83.9 | I41: 50.34 | J41: 84.28 | K41: 5
A42: 40 | B42: 2022081701627 | C42: 张淑博 | D42: 凌海市第二高级中学-化学教师 | E42: 2109 | F42: 88.93 | G42: 35.57 | H42: 80.7 | I42: 48.42 | J42: 83.99 | K42: 6
A43: 41 | B43: 2022081701630 | C43: 刘津豫 | D43: 凌海市第二高级中学-化学教师 | E43: 2109 | F43: 80.97 | G43: 32.39 | H43: 85.2 | I43: 51.12 | J43: 83.51 | K43: 7
A44: 42 | B44: 2022081701628 | C44: 张双 | D44: 凌海市第二高级中学-化学教师 | E44: 2109 | F44: 80.76 | G44: 32.30 | H44: 82 | I44: 49.2 | J44: 81.50 | K44: 8
A45: 43 | B45: 2022081701919 | C45: 王智婕 | D45: 凌海市第二高级中学-数学教师 | E45: 2110 | F45: 85.81 | G45: 34.32 | H45: 88.2 | I45: 52.92 | J45: 87.24 | K45: 1
A46: 44 | B46: 2022081702016 | C46: 刘冬冰 | D46: 凌海市第二高级中学-数学教师 | E46: 2110 | F46: 84.13 | G46: 33.65 | H46: 89.2 | I46: 53.52 | J46: 87.17 | K46: 2
A47: 45 | B47: 2022081701925 | C47: 顾艳颖 | D47: 凌海市第二高级中学-数学教师 | E47: 2110 | F47: 82.19 | G47: 32.88 | H47: 87.2 | I47: 52.32 | J47: 85.20 | K47: 3
A48: 46 | B48: 2022081701911 | C48: 赖佳 | D48: 凌海市第二高级中学-数学教师 | E48: 2110 | F48: 82.14 | G48: 32.86 | H48: 86.4 | I48: 51.84 | J48: 84.70 | K48: 4
A49: 47 | B49: 2022081702007 | C49: 吕佳宾 | D49: 凌海市第二高级中学-数学教师 | E49: 2110 | F49: 84.38 | G49: 33.75 | H49: 84.8 | I49: 50.88 | J49: 84.63 | K49: 5
A50: 48 | B50: 2022081702018 | C50: 杨思宇 | D50: 凌海市第二高级中学-数学教师 | E50: 2110 | F50: 80.31 | G50: 32.12 | H50: 84.2 | I50: 50.52 | J50: 82.64 | K50: 6
A51: 49 | B51: 2022081702120 | C51: 李哲 | D51: 凌海市第二高级中学-体育教师 | E51: 2111 | F51: 93.01 | G51: 37.20 | H51: 91.4 | I51: 54.84 | J51: 92.04 | K51: 1
A52: 50 | B52: 2022081702101 | C52: 杨智文 | D52: 凌海市第二高级中学-体育教师 | E52: 2111 | F52: 92.55 | G52: 37.02 | H52: 91 | I52: 54.6 | J52: 91.62 | K52: 2
A53: 51 | B53: 2022081702119 | C53: 吴晓明 | D53: 凌海市第二高级中学-体育教师 | E53: 2111 | F53: 93.52 | G53: 37.41 | H53: 89.4 | I53: 53.64 | J53: 91.05 | K53: 3
A54: 52 | B54: 2022081702204 | C54: 肖雨竺 | D54: 凌海市第二高级中学-体育教师 | E54: 2111 | F54: 75.71 | G54: 30.28 | H54: 81.6 | I54: 48.96 | J54: 79.24 | K54: 4
A55: 53 | B55: 2022081702216 | C55: 王若凡 | D55: 凌海市第二高级中学-语文教师 | E55: 2112 | F55: 73.01 | G55: =F:F*0.4 -> 29.20 | H55: 88.8 | I55: =H:H*0.6 -> 53.28 | J55: =G:G+I:I -> 82.48 | K55: 1
A56: 54 | B56: 2022081702217 | C56: 孙晓诺 | D56: 凌海市第二高级中学-语文教师 | E56: 2112 | F56: 69.39 | G56: 27.76 | H56: 84 | I56: 50.4 | J56: 78.16 | K56: 2
A57: 55 | B57: 2022081702219 | C57: 王莹 | D57: 凌海市第三高级中学-生物教师 | E57: 2113 | F57: 90.35 | G57: 36.14 | H57: 87.4 | I57: 52.44 | J57: 88.58 | K57: 1
A58: 56 | B58: 2022081702221 | C58: 陆羡 | D58: 凌海市第三高级中学-生物教师 | E58: 2113 | F58: 84.84 | G58: 33.94 | H58: 87.8 | I58: 52.68 | J58: 86.62 | K58: 2
A59: 57 | B59: 2022081702230 | C59: 高爽 | D59: 凌海市第三高级中学-语文教师 | E59: 2114 | F59: 68.72 | G59: 27.49 | H59: 82 | I59: 49.2 | J59: 76.69 | K59: 1
A60: 58 | B60: 2022081702303 | C60: 杨晴 | D60: 凌海市第三高级中学-数学教师 | E60: 2115 | F60: 81.89 | G60: 32.76 | H60: 92 | I60: 55.2 | J60: 87.96 | K60: 1
A61: 59 | B61: 2022081702307 | C61: 张会 | D61: 凌海市第三高级中学-数学教师 | E61: 2115 | F61: 66.38 | G61: 26.55 | H61: 83.4 | I61: 50.04 | J61: 76.59 | K61: 2
A62: 60 | B62: 2022081702323 | C62: 李华君 | D62: 凌海市第三高级中学-历史教师 | E62: 2116 | F62: 70.67 | G62: 28.27 | H62: 87.2 | I62: 52.32 | J62: 80.59 | K62: 1
A63: 61 | B63: 2022081702325 | C63: 袁帅 | D63: 凌海市第三高级中学-历史教师 | E63: 2116 | F63: 64.39 | G63: 25.76 | H63: 84.8 | I63: 50.88 | J63: 76.64 | K63: 2
A64: 62 | B64: 2022081702330 | C64: 翟盈辉 | D64: 凌海市职业教育中心-会计教师 | E64: 2117 | F64: 83.88 | G64: 33.55 | H64: 88.6 | I64: 53.16 | J64: 86.71 | K64: 1
A65: 63 | B65: 2022081702328 | C65: 付天红 | D65: 凌海市职业教育中心-会计教师 | E65: 2117 | F65: 63.22 | G65: 25.29 | H65: 82.4 | I65: 49.44 | J65: 74.73 | K65: 2
A66: 64 | B66: 2022081702422 | C66: 侯乃菊 | D66: 凌海市职业教育中心-英语教师 | E66: 2118 | F66: 90.1 | G66: =F:F*0.4 -> 36.04 | H66: 85.2 | I66: =H:H*0.6 -> 51.12 | J66: =G:G+I:I -> 87.16 | K66: 1
A67: 65 | B67: 2022081702423 | C67: 梁增玉 | D67: 凌海市职业教育中心-英语教师 | E67: 2118 | F67: 83.36 | G67: =F:F*0.4 -> 33.34 | H67: 81.2 | I67: =H:H*0.6 -> 48.72 | J67: =G:G+I:I -> 82.06 | K67: 2
A68: 66 | B68: 2022081702530 | C68: 刘艾 | D68: 凌海市职业教育中心-历史教师 | E68: 2119 | F68: 79.34 | G68: =F:F*0.4 -> 31.74 | H68: 90.6 | I68: =H:H*0.6 -> 54.36 | J68: =G:G+I:I -> 86.10 | K68: 1
A69: 67 | B69: 2022081702525 | C69: 杨潇 | D69: 凌海市职业教育中心-历史教师 | E69: 2119 | F69: 79.79 | G69: =F:F*0.4 -> 31.92 | H69: 88.4 | I69: =H:H*0.6 -> 53.04 | J69: =G:G+I:I -> 84.96 | K69: 2
A70: 68 | B70: 2022081702610 | C70: 王培煊 | D70: 凌海市职业教育中心-体育教师 | E70: 2120 | F70: 72.57 | G70: 29.03 | H70: 87 | I70: 52.2 | J70: 81.23 | K70: 1
A71: 69 | B71: 2022081702602 | C71: 申文萃 | D71: 凌海市职业教育中心-体育教师 | E71: 2120 | F71: 70.81 | G71: 28.32 | H71: 87.6 | I71: 52.56 | J71: 80.88 | K71: 2
A72: 70 | B72: 2022081702616 | C72: 朱子萱 | D72: 凌海市职业教育中心-畜牧兽医教师 | E72: 2121 | F72: 65.56 | G72: 26.22 | H72: 85.6 | I72: 51.36 | J72: 77.58 | K72: 1
A73: 71 | B73: 2022081702621 | C73: 王子怡 | D73: 凌海市职业教育中心-语文教师 | E73: 2122 | F73: 86.04 | G73: =F:F*0.4 -> 34.42 | H73: 85.6 | I73: 51.36 | J73: 85.78 | K73: 1
A74: 72 | B74: 2022081702626 | C74: 乌白鸽 | D74: 凌海市职业教育中心-语文教师 | E74: 2122 | F74: 75.92 | G74: 30.37 | H74: 85.2 | I74: 51.12 | J74: 81.49 | K74: 2
A75: 73 | B75: 2022081702708 | C75: 张晗笑 | D75: 凌海市职业教育中心-数学教师 | E75: 2123 | F75: 84.28 | G75: =F:F*0.4 -> 33.71 | H75: 87.2 | I75: =H:H*0.6 -> 52.32 | J75: =G:G+I:I -> 86.03 | K75: 1
A76: 74 | B76: 2022081702709 | C76: 阎月娇 | D76: 凌海市职业教育中心-数学教师 | E76: 2123 | F76: 86.27 | G76: =F:F*0.4 -> 34.51 | H76: 84.2 | I76: =H:H*0.6 -> 50.52 | J76: =G:G+I:I -> 85.03 | K76: 2
A77: 75 | B77: 2022081702716 | C77: 赵思尧 | D77: 凌海市职业教育中心-政治（道德与法治）教师 | E77: 2124 | F77: 75.2 | G77: 30.08 | H77: 89.6 | I77: 53.76 | J77: 83.84 | K77: 1
A78: 76 | B78: 2022081702714 | C78: 王旭 | D78: 凌海市职业教育中心-政治（道德与法治）教师 | E78: 2124 | F78: 64.9 | G78: 25.96 | H78: 86.8 | I78: 52.08 | J78: 78.04 | K78: 2
A79: 77 | B79: 2022081702727 | C79: 贾新宇 | D79: 凌海市职业教育中心-电商专业教师 | E79: 2125 | F79: 83.63 | G79: 33.45 | H79: 87.4 | I79: =H:H*0.6 -> 52.44 | J79: =G:G+I:I -> 85.89 | K79: 1
A80: 78 | B80: 2022081702724 | C80: 颜更新 | D80: 凌海市职业教育中心-电商专业教师 | E80: 2125 | F80: 76.22 | G80: 30.49 | H80: 0 | I80: 0 | J80: 30.49 | K80: 2
A81: 79 | B81: 2022081702729 | C81: 韩新予 | D81: 凌海市职业教育中心-舞蹈教师 | E81: 2126 | F81: 81.43 | G81: 32.57 | H81: 88.8 | I81: 53.28 | J81: 85.85 | K81: 1
A82: 80 | B82: 2022081702919 | C82: 袁芳 | D82: 凌海市第一初级中学-语文教师 | E82: 2127 | F82: 85.04 | G82: =F:F*0.4 -> 34.02 | H82: 86.5 | I82: =H:H*0.6 -> 51.9 | J82: =G:G+I:I -> 85.92 | K82: 1
A83: 81 | B83: 2022081702920 | C83: 徐晓媛 | D83: 凌海市第一初级中学-语文教师 | E83: 2127 | F83: 79.74 | G83: 31.90 | H83: 88.4 | I83: 53.04 | J83: 84.94 | K83: 2
A84: 82 | B84: 2022081703011 | C84: 薛迪恒 | D84: 凌海市第一初级中学-语文教师 | E84: 2127 | F84: 82.45 | G84: 32.98 | H84: 84.4 | I84: 50.64 | J84: 83.62 | K84: 3
A85: 83 | B85: 2022081702923 | C85: 孟乐 | D85: 凌海市第一初级中学-语文教师 | E85: 2127 | F85: 81.68 | G85: 32.67 | H85: 82.6 | I85: 49.56 | J85: 82.23 | K85: 4
A86: 84 | B86: 2022081702908 | C86: 常雨尘 | D86: 凌海市第一初级中学-语文教师 | E86: 2127 | F86: 80.77 | G86: 32.31 | H86: 81.4 | I86: 48.84 | J86: 81.15 | K86: 5
A87: 85 | B87: 2022081703005 | C87: 李爱新 | D87: 凌海市第一初级中学-语文教师 | E87: 2127 | F87: 76.24 | G87: 30.50 | H87: 82.4 | I87: 49.44 | J87: 79.94 | K87: 6
A88: 86 | B88: 2022081703028 | C88: 张丽娟 | D88: 凌海市第一初级中学-物理教师 | E88: 2128 | F88: 88.41 | G88: 35.36 | H88: 80.8 | I88: 48.48 | J88: 83.84 | K88: 1
A89: 87 | B89: 2022081703013 | C89: 李金儒 | D89: 凌海市第一初级中学-物理教师 | E89: 2128 | F89: 83.93 | G89: 33.57 | H89: 82.2 | I89: 49.32 | J89: 82.89 | K89: 2
A90: 88 | B90: 2022081703114 | C90: 陈金昭 | D90: 凌海市第一初级中学-地理教师 | E90: 2129 | F90: 61.79 | G90: 24.72 | H90: 83.8 | I90: 50.28 | J90: 75.00 | K90: 1
A91: 89 | B91: 2022081703201 | C91: 齐浩 | D91: 凌海市第一初级中学-体育教师 | E91: 2130 | F91: 87.05 | G91: =F:F*0.4 -> 34.82 | H91: 88.4 | I91: =H:H*0.6 -> 53.04 | J91: =G:G+I:I -> 87.86 | K91: 1
A92: 90 | B92: 2022081703120 | C92: 李垚 | D92: 凌海市第一初级中学-体育教师 | E92: 2130 | F92: 72.15 | G92: =F:F*0.4 -> 28.86 | H92: 90.8 | I92: =H:H*0.6 -> 54.48 | J92: =G:G+I:I -> 83.34 | K92: 2
A93: 91 | B93: 2022081703219 | C93: 王元卓 | D93: 凌海市第一初级中学-体育教师 | E93: 2130 | F93: 74.79 | G93: =F:F*0.4 -> 29.92 | H93: 87.6 | I93: =H:H*0.6 -> 52.56 | J93: =G:G+I:I -> 82.48 | K93: 3
A94: 92 | B94: 2022081703221 | C94: 刘菲菲 | D94: 凌海市第一初级中学-体育教师 | E94: 2130 | F94: 69.89 | G94: =F:F*0.4 -> 27.96 | H94: 86.8 | I94: =H:H*0.6 -> 52.08 | J94: =G:G+I:I -> 80.04 | K94: 4
A95: 93 | B95: 2022081703228 | C95: 付宇萌 | D95: 凌海市第二初级中学-语文教师 | E95: 2131 | F95: 80.5 | G95: 32.20 | H95: 86.5 | I95: 51.9 | J95: 84.10 | K95: 1
A96: 94 | B96: 2022081703407 | C96: 闫佳黛 | D96: 凌海市第二初级中学-英语教师 | E96: 2133 | F96: 85.31 | G96: =F:F*0.4 -> 34.12 | H96: 81.9 | I96: =H:H*0.6 -> 49.14 | J96: =G:G+I:I -> 83.26 | K96: 1
A97: 95 | B97: 2022081703510 | C97: 刘春红 | D97: 凌海市第二初级中学-英语教师 | E97: 2133 | F97: 85.5 | G97: 34.20 | H97: 80.6 | I97: 48.36 | J97: 82.56 | K97: 2
A98: 96 | B98: 2022081703613 | C98: 李心竹 | D98: 凌海市实验学校初中部-语文教师 | E98: 2134 | F98: 80.26 | G98: 32.10 | H98: 83.7 | I98: 50.22 | J98: 82.32 | K98: 1
A99: 97 | B99: 2022081703530 | C99: 刘爽 | D99: 凌海市实验学校初中部-语文教师 | E99: 2134 | F99: 75.41 | G99: 30.16 | H99: 81.9 | I99: 49.14 | J99: 79.30 | K99: 2
A100: 98 | B100: 2022081703612 | C100: 郑颖超 | D100: 凌海市实验学校初中部-语文教师 | E100: 2134 | F100: 67.95 | G100: 27.18 | H100: 84.4 | I100: 50.64 | J100: 77.82 | K100: 3
A101: 99 | B101: 2022081703615 | C101: 张思宇 | D101: 凌海市实验学校初中部-语文教师 | E101: 2134 | F101: 68.2 | G101: 27.28 | H101: 82 | I101: 49.2 | J101: 76.48 | K101: 4
A102: 100 | B102: 2022081703723 | C102: 张耀 | D102: 凌海市实验学校初中部-数学教师 | E102: 2136 | F102: 80.5 | G102: 32.20 | H102: 84.2 | I102: 50.52 | J102: 82.72 | K102: 1
A103: 101 | B103: 2022081703705 | C103: 李姗珊 | D103: 凌海市实验学校初中部-数学教师 | E103: 2136 | F103: 79.49 | G103: 31.80 | H103: 82.4 | I103: 49.44 | J103: 81.24 | K103: 2
A104: 102 | B104: 2022081703817 | C104: 李昕 | D104: 凌海市实验学校初中部-化学教师 | E104: 2137 | F104: 83.61 | G104: =F:F*0.4 -> 33.44 | H104: 85.6 | I104: =H:H*0.6 -> 51.36 | J104: =G:G+I:I -> 84.80 | K104: 1
A105: 103 | B105: 2022081703802 | C105: 冯琦 | D105: 凌海市实验学校初中部-化学教师 | E105: 2137 | F105: 83.63 | G105: =F:F*0.4 -> 33.45 | H105: 82.9 | I105: =H:H*0.6 -> 49.74 | J105: =G:G+I:I -> 83.19 | K105: 2
A106: 104 | B106: 2022081704027 | C106: 田晶 | D106: 凌海市实验学校初中部-英语教师 | E106: 2138 | F106: 88.67 | G106: =F:F*0.4 -> 35.47 | H106: 84.2 | I106: =H:H*0.6 -> 50.52 | J106: =G:G+I:I -> 85.99 | K106: 1
A107: 105 | B107: 2022081704016 | C107: 王锐 | D107: 凌海市实验学校初中部-英语教师 | E107: 2138 | F107: 90.87 | G107: =F:F*0.4 -> 36.35 | H107: 80.2 | I107: =H:H*0.6 -> 48.12 | J107: =G:G+I:I -> 84.47 | K107: 2
A108: 106 | B108: 2022081704102 | C108: 孟博 | D108: 凌海市实验学校初中部-体育教师 | E108: 2139 | F108: 72.03 | G108: 28.81 | H108: 86.8 | I108: 52.08 | J108: 80.89 | K108: 1
A109: 107 | B109: 2022081704109 | C109: 张雪 | D109: 凌海市第一小学-语文教师 | E109: 2140 | F109: 68.21 | G109: 27.28 | H109: 89.5 | I109: 53.7 | J109: 80.98 | K109: 1
A110: 108 | B110: 2022081704108 | C110: 邢楠 | D110: 凌海市第一小学-语文教师 | E110: 2140 | F110: 64.13 | G110: 25.65 | H110: 84 | I110: 50.4 | J110: 76.05 | K110: 2
A111: 109 | B111: 2022081704114 | C111: 王婷 | D111: 凌海市第一小学-数学教师 | E111: 2141 | F111: 73.26 | G111: 29.30 | H111: 85.2 | I111: 51.12 | J111: 80.42 | K111: 1
A112: 110 | B112: 2022081704112 | C112: 杨洋 | D112: 凌海市第一小学-数学教师 | E112: 2141 | F112: 64.64 | G112: 25.86 | H112: 81.6 | I112: 48.96 | J112: 74.82 | K112: 2
A113: 111 | B113: 2022081704303 | C113: 刁苏 | D113: 凌海市第一小学-英语教师 | E113: 2142 | F113: 88.69 | G113: =F:F*0.4 -> 35.48 | H113: 86.1 | I113: =H:H*0.6 -> 51.66 | J113: =G:G+I:I -> 87.14 | K113: 1
A114: 112 | B114: 2022081704116 | C114: 孙晴晴 | D114: 凌海市第一小学-英语教师 | E114: 2142 | F114: 91.53 | G114: =F:F*0.4 -> 36.61 | H114: 82.8 | I114: =H:H*0.6 -> 49.68 | J114: =G:G+I:I -> 86.29 | K114: 2
A115: 113 | B115: 2022081704429 | C115: 范鑫 | D115: 凌海市第一小学-体育教师 | E115: 2143 | F115: 75.25 | G115: =F:F*0.4 -> 30.10 | H115: 85.6 | I115: =H:H*0.6 -> 51.36 | J115: =G:G+I:I -> 81.46 | K115: 1
A116: 114 | B116: 2022081704427 | C116: 宋雨森 | D116: 凌海市第一小学-体育教师 | E116: 2143 | F116: 75.47 | G116: =F:F*0.4 -> 30.19 | H116: 0 | I116: =H:H*0.6 -> 0 | J116: =G:G+I:I -> 30.19 | K116: 2
A117: 115 | B117: 2022081704507 | C117: 唐恒 | D117: 凌海市第二小学-语文教师 | E117: 2144 | F117: 73.31 | G117: 29.32 | H117: 79.7 | I117: 47.82 | J117: 77.14 | K117: 1
A118: 116 | B118: 2022081704510 | C118: 李雪 | D118: 凌海市第二小学-语文教师 | E118: 2144 | F118: 63.66 | G118: 25.46 | H118: 85.3 | I118: 51.18 | J118: 76.64 | K118: 2
A119: 117 | B119: 2022081704513 | C119: 张沛坤 | D119: 凌海市第二小学-数学教师 | E119: 2145 | F119: 70.92 | G119: 28.37 | H119: 86.4 | I119: 51.84 | J119: 80.21 | K119: 1
A120: 118 | B120: 2022081704803 | C120: 李未然 | D120: 凌海市实验小学-语文教师 | E120: 2146 | F120: 88.67 | G120: =F:F*0.4 -> 35.47 | H120: 87.6 | I120: =H:H*0.6 -> 52.56 | J120: =G:G+I:I -> 88.03 | K120: 1
A121: 119 | B121: 2022081704613 | C121: 林家丞 | D121: 凌海市实验小学-语文教师 | E121: 2146 | F121: 77.59 | G121: 31.04 | H121: 86.5 | I121: 51.9 | J121: 82.94 | K121: 2
A122: 120 | B122: 2022081704629 | C122: 娄燕 | D122: 凌海市实验小学-语文教师 | E122: 2146 | F122: 80.51 | G122: 32.20 | H122: 84.3 | I122: 50.58 | J122: 82.78 | K122: 3
A123: 121 | B123: 2022081704519 | C123: 刘水清 | D123: 凌海市实验小学-语文教师 | E123: 2146 | F123: 76.43 | G123: 30.57 | H123: 84.8 | I123: 50.88 | J123: 81.45 | K123: 4
A124: 122 | B124: 2022081704806 | C124: 徐畅 | D124: 凌海市实验小学-语文教师 | E124: 2146 | F124: 75.5 | G124: 30.20 | H124: 85.3 | I124: 51.18 | J124: 81.38 | K124: 5
A125: 123 | B125: 2022081704623 | C125: 胡炜洁 | D125: 凌海市实验小学-语文教师 | E125: 2146 | F125: 78.83 | G125: 31.53 | H125: 82.6 | I125: 49.56 | J125: 81.09 | K125: 6
A126: 124 | B126: 2022081704701 | C126: 孙福明 | D126: 凌海市实验小学-语文教师 | E126: 2146 | F126: 72.81 | G126: 29.12 | H126: 86.3 | I126: 51.78 | J126: 80.90 | K126: 7
A127: 125 | B127: 2022081704724 | C127: 徐帆 | D127: 凌海市实验小学-语文教师 | E127: 2146 | F127: 74.02 | G127: 29.61 | H127: 85.4 | I127: 51.24 | J127: 80.85 | K127: 8
A128: 126 | B128: 2022081704604 | C128: 陈金玲 | D128: 凌海市实验小学-语文教师 | E128: 2146 | F128: 73.78 | G128: 29.51 | H128: 84.3 | I128: 50.58 | J128: 80.09 | K128: 9
A129: 127 | B129: 2022081704618 | C129: 金百艳 | D129: 凌海市实验小学-语文教师 | E129: 2146 | F129: 77.59 | G129: 31.04 | H129: 60 | I129: 36 | J129: 67.04 | K129: 10
A130: 128 | B130: 2022081704728 | C130: 张天镁 | D130: 凌海市实验小学-语文教师 | E130: 2146 | F130: 73.84 | G130: 29.54 | H130: 0 | I130: 0 | J130: 29.54 | K130: 11
A131: 129 | B131: 2022081704630 | C131: 张丹丹 | D131: 凌海市实验小学-语文教师 | E131: 2146 | F131: 72.54 | G131: 29.02 | H131: 0 | I131: 0 | J131: 29.02 | K131: 12
A132: 130 | B132: 2022081704812 | C132: 常柏玲 | D132: 凌海市实验小学-数学教师 | E132: 2147 | F132: 72.54 | G132: 29.02 | H132: 87.6 | I132: 52.56 | J132: 81.58 | K132: 1
A133: 131 | B133: 2022081704809 | C133: 孙玉通 | D133: 凌海市实验小学-数学教师 | E133: 2147 | F133: 67.04 | G133: 26.82 | H133: 84.8 | I133: 50.88 | J133: 77.70 | K133: 2
A134: 132 | B134: 2022081705003 | C134: 孙冰白 | D134: 凌海市实验小学-英语教师 | E134: 2148 | F134: 87.24 | G134: =F:F*0.4 -> 34.90 | H134: 83.8 | I134: =H:H*0.6 -> 50.28 | J134: =G:G+I:I -> 85.18 | K134: 1
A135: 133 | B135: 2022081705006 | C135: 刘佳星 | D135: 凌海市实验小学-英语教师 | E135: 2148 | F135: 86.53 | G135: 34.61 | H135: 80.4 | I135: 48.24 | J135: 82.85 | K135: 2
A136: 134 | B136: 2022081705116 | C136: 田菁 | D136: 凌海市育才学校小学部-语文教师 | E136: 2149 | F136: 77.9 | G136: 31.16 | H136: 95.2 | I136: 57.12 | J136: 88.28 | K136: 1
A137: 135 | B137: 2022081705119 | C137: 胡婷婷 | D137: 凌海市育才学校小学部-语文教师 | E137: 2149 | F137: 75.51 | G137: 30.20 | H137: 86.7 | I137: 52.02 | J137: 82.22 | K137: 2
A138: 136 | B138: 2022081705101 | C138: 王特 | D138: 凌海市育才学校小学部-语文教师 | E138: 2149 | F138: 79.03 | G138: 31.61 | H138: 82.5 | I138: 49.5 | J138: 81.11 | K138: 3
A139: 137 | B139: 2022081705107 | C139: 董小雨 | D139: 凌海市育才学校小学部-语文教师 | E139: 2149 | F139: 67.29 | G139: 26.92 | H139: 82.7 | I139: 49.62 | J139: 76.54 | K139: 4
A140: 138 | B140: 2022081705105 | C140: 郭峰 | D140: 凌海市育才学校小学部-语文教师 | E140: 2149 | F140: 64.18 | G140: 25.67 | H140: 83.6 | I140: 50.16 | J140: 75.83 | K140: 5
A141: 139 | B141: 2022081705109 | C141: 闫一宁 | D141: 凌海市育才学校小学部-语文教师 | E141: 2149 | F141: 61.48 | G141: 24.59 | H141: 82.2 | I141: 49.32 | J141: 73.91 | K141: 6
A142: 140 | B142: 2022081705123 | C142: 张娇 | D142: 凌海市育才学校小学部-数学教师 | E142: 2150 | F142: 79.08 | G142: =F:F*0.4 -> 31.63 | H142: 89.2 | I142: 53.52 | J142: 85.15 | K142: 1
A143: 141 | B143: 2022081705125 | C143: 魏海丽 | D143: 凌海市育才学校小学部-数学教师 | E143: 2150 | F143: 77.6 | G143: 31.04 | H143: 87.8 | I143: =H:H*0.6 -> 52.68 | J143: =G:G+I:I -> 83.72 | K143: 2
A144: 142 | B144: 2022081705418 | C144: 杨赛 | D144: 凌海市育才学校小学部-美术教师 | E144: 2151 | F144: 88.26 | G144: 35.30 | H144: 90 | I144: 54 | J144: 89.30 | K144: 1
A145: 143 | B145: 2022081705217 | C145: 高莹莹 | D145: 凌海市育才学校小学部-美术教师 | E145: 2151 | F145: 85.3 | G145: 34.12 | H145: 84.6 | I145: 50.76 | J145: 84.88 | K145: 2
A146: 144 | B146: 2022081705629 | C146: 赵梓源 | D146: 凌海市育才学校小学部-信息技术教师 | E146: 2152 | F146: 92.3 | G146: 36.92 | H146: 90.2 | I146: 54.12 | J146: 91.04 | K146: 1
A147: 145 | B147: 2022081705707 | C147: 齐畅 | D147: 凌海市育才学校小学部-信息技术教师 | E147: 2152 | F147: 86.27 | G147: 34.51 | H147: 89.2 | I147: 53.52 | J147: 88.03 | K147: 2
A148: 146 | B148: 2022081705822 | C148: 杨靓妮 | D148: 凌海市育才学校小学部-音乐教师 | E148: 2153 | F148: 76.63 | G148: 30.65 | H148: 86.5 | I148: 51.9 | J148: 82.55 | K148: 1
A149: 147 | B149: 2022081705813 | C149: 魏冬宇 | D149: 凌海市育才学校小学部-音乐教师 | E149: 2153 | F149: 73.06 | G149: 29.22 | H149: 87.6 | I149: 52.56 | J149: 81.78 | K149: 2
A150: 148 | B150: 2022081705905 | C150: 张洋洋 | D150: 凌海市第五小学-数学教师 | E150: 2154 | F150: 76.87 | G150: 30.75 | H150: 86.4 | I150: 51.84 | J150: 82.59 | K150: 1
A151: 149 | B151: 2022081705908 | C151: 马晶晶 | D151: 凌海市第五小学-数学教师 | E151: 2154 | F151: 70.19 | G151: 28.08 | H151: 80.4 | I151: 48.24 | J151: 76.32 | K151: 2
A152: 150 | B152: 2022081705913 | C152: 张彤 | D152: 凌海市第五小学-语文教师 | E152: 2155 | F152: 76.88 | G152: 30.75 | H152: 89.4 | I152: 53.64 | J152: 84.39 | K152: 1
A153: 151 | B153: 2022081705915 | C153: 王璐璐 | D153: 凌海市第五小学-语文教师 | E153: 2155 | F153: 60.82 | G153: 24.33 | H153: 70 | I153: 42 | J153: 66.33 | K153: 2
A154: 152 | B154: 2022081706009 | C154: 翟琳琳 | D154: 凌海市第五小学-音乐教师 | E154: 2156 | F154: 75.72 | G154: 30.29 | H154: 83.8 | I154: 50.28 | J154: 80.57 | K154: 1
A155: 153 | B155: 2022081706014 | C155: 谢一 | D155: 凌海市第五小学-音乐教师 | E155: 2156 | F155: 67.95 | G155: 27.18 | H155: 87.2 | I155: 52.32 | J155: 79.50 | K155: 2
A156: 154 | B156: 2022081706025 | C156: 李书羽 | D156: 凌海市雷锋小学-语文教师 | E156: 2157 | F156: 69.85 | G156: =F:F*0.4 -> 27.94 | H156: 91.5 | I156: =H:H*0.6 -> 54.9 | J156: =G:G+I:I -> 82.84 | K156: 1
A157: 155 | B157: 2022081706028 | C157: 王星 | D157: 凌海市雷锋小学-语文教师 | E157: 2157 | F157: 74.99 | G157: =F:F*0.4 -> 30.00 | H157: 79.8 | I157: =H:H*0.6 -> 47.88 | J157: =G:G+I:I -> 77.88 | K157: 2
A158: 156 | B158: 2022081706105 | C158: 翟倩 | D158: 凌海市雷锋小学-音乐教师 | E158: 2158 | F158: 71.84 | G158: =F:F*0.4 -> 28.74 | H158: 86 | I158: =H:H*0.6 -> 51.6 | J158: =G:G+I:I -> 80.34 | K158: 1
A159: 157 | B159: 2022081706111 | C159: 王影 | D159: 凌海市雷锋小学-音乐教师 | E159: 2158 | F159: 75.19 | G159: =F:F*0.4 -> 30.08 | H159: 0 | I159: =H:H*0.6 -> 0 | J159: =G:G+I:I -> 30.08 | K159: 2
A160: 158 | B160: 2022081706123 | C160: 李奇 | D160: 凌海市雷锋小学-体育教师 | E160: 2159 | F160: 74.02 | G160: 29.61 | H160: 87 | I160: 52.2 | J160: 81.81 | K160: 1
A161: 159 | B161: 2022081706117 | C161: 穆振华 | D161: 凌海市雷锋小学-体育教师 | E161: 2159 | F161: 70.09 | G161: 28.04 | H161: 88.2 | I161: 52.92 | J161: 80.96 | K161: 2
A162: 160 | B162: 2022081706210 | C162: 郭静慈 | D162: 凌海市雷锋小学-美术教师 | E162: 2160 | F162: 86.01 | G162: 34.40 | H162: 88.4 | I162: 53.04 | J162: 87.44 | K162: 1
A163: 161 | B163: 2022081706222 | C163: 李选 | D163: 凌海市雷锋小学-美术教师 | E163: 2160 | F163: 79.58 | G163: 31.83 | H163: 87.4 | I163: 52.44 | J163: 84.27 | K163: 2
A164: 162 | B164: 2022081706506 | C164: 魏宁 | D164: 凌海市凌水小镇学校（小学部）-语文教师 | E164: 2161 | F164: 79.27 | G164: =F:F*0.4 -> 31.71 | H164: 91.5 | I164: =H:H*0.6 -> 54.9 | J164: =G:G+I:I -> 86.61 | K164: 1
A165: 163 | B165: 2022081706329 | C165: 符双 | D165: 凌海市凌水小镇学校（小学部）-语文教师 | E165: 2161 | F165: 80.46 | G165: 32.18 | H165: 86.4 | I165: 51.84 | J165: 84.02 | K165: 2
A166: 164 | B166: 2022081706517 | C166: 马仁钦 | D166: 凌海市凌水小镇学校（小学部）-语文教师 | E166: 2161 | F166: 77.59 | G166: 31.04 | H166: 86.7 | I166: 52.02 | J166: 83.06 | K166: 3
A167: 165 | B167: 2022081706505 | C167: 代苗苗 | D167: 凌海市凌水小镇学校（小学部）-语文教师 | E167: 2161 | F167: 85.5 | G167: 34.20 | H167: 81.4 | I167: 48.84 | J167: 83.04 | K167: 4
A168: 166 | B168: 2022081706515 | C168: 曹洋 | D168: 凌海市凌水小镇学校（小学部）-语文教师 | E168: 2161 | F168: 74.02 | G168: 29.61 | H168: 88.2 | I168: 52.92 | J168: 82.53 | K168: 5
A169: 167 | B169: 2022081706421 | C169: 黄楠 | D169: 凌海市凌水小镇学校（小学部）-语文教师 | E169: 2161 | F169: 75.92 | G169: 30.37 | H169: 84.4 | I169: 50.64 | J169: 81.01 | K169: 6
A170: 168 | B170: 2022081706521 | C170: 周丹 | D170: 凌海市凌水小镇学校（小学部）-语文教师 | E170: 2161 | F170: 78.36 | G170: 31.34 | H170: 82.3 | I170: 49.38 | J170: 80.72 | K170: 7
A171: 169 | B171: 2022081706321 | C171: 刘思岑 | D171: 凌海市凌水小镇学校（小学部）-语文教师 | E171: 2161 | F171: 76.88 | G171: 30.75 | H171: 83.1 | I171: 49.86 | J171: 80.61 | K171: 8
A172: 170 | B172: 2022081706418 | C172: 迟磊 | D172: 凌海市凌水小镇学校（小学部）-语文教师 | E172: 2161 | F172: 74.73 | G172: 29.89 | H172: 84.1 | I172: 50.46 | J172: 80.35 | K172: 9
A173: 171 | B173: 2022081706315 | C173: 张曦文 | D173: 凌海市凌水小镇学校（小学部）-语文教师 | E173: 2161 | F173: 74.94 | G173: 29.98 | H173: 83.2 | I173: 49.92 | J173: 79.90 | K173: 10
A174: 172 | B174: 2022081706322 | C174: 裴诗琦 | D174: 凌海市凌水小镇学校（小学部）-语文教师 | E174: 2161 | F174: 75.2 | G174: 30.08 | H174: 82.8 | I174: 49.68 | J174: 79.76 | K174: 11
A175: 173 | B175: 2022081706406 | C175: 吴昕越 | D175: 凌海市凌水小镇学校（小学部）-语文教师 | E175: 2161 | F175: 71.18 | G175: 28.47 | H175: 80.9 | I175: 48.54 | J175: 77.01 | K175: 12
A176: 174 | B176: 2022081706628 | C176: 田晓旭 | D176: 凌海市凌水小镇学校（小学部）-数学教师 | E176: 2162 | F176: 83.42 | G176: =F:F*0.4 -> 33.37 | H176: 86.8 | I176: =H:H*0.6 -> 52.08 | J176: =G:G+I:I -> 85.45 | K176: 1
A177: 175 | B177: 2022081706524 | C177: 马鸣鹤 | D177: 凌海市凌水小镇学校（小学部）-数学教师 | E177: 2162 | F177: 76.23 | G177: 30.49 | H177: 88.4 | I177: 53.04 | J177: 83.53 | K177: 2
A178: 176 | B178: 2022081706525 | C178: 马贺洁 | D178: 凌海市凌水小镇学校（小学部）-数学教师 | E178: 2162 | F178: 79.27 | G178: 31.71 | H178: 83.2 | I178: 49.92 | J178: 81.63 | K178: 3
A179: 177 | B179: 2022081706612 | C179: 潘兴月 | D179: 凌海市凌水小镇学校（小学部）-数学教师 | E179: 2162 | F179: 72.54 | G179: 29.02 | H179: 86.8 | I179: 52.08 | J179: 81.10 | K179: 4
A180: 178 | B180: 2022081706528 | C180: 郑博 | D180: 凌海市凌水小镇学校（小学部）-数学教师 | E180: 2162 | F180: 70.09 | G180: 28.04 | H180: 84.8 | I180: 50.88 | J180: 78.92 | K180: 5
A181: 179 | B181: 2022081706611 | C181: 陈晓宇 | D181: 凌海市凌水小镇学校（小学部）-数学教师 | E181: 2162 | F181: 70.61 | G181: 28.24 | H181: 82 | I181: 49.2 | J181: 77.44 | K181: 6
A182: 180 | B182: 2022081706705 | C182: 柳金维 | D182: 凌海市凌水小镇学校（小学部）-音乐教师 | E182: 2163 | F182: 71.58 | G182: =F:F*0.4 -> 28.63 | H182: 89.4 | I182: =H:H*0.6 -> 53.64 | J182: =G:G+I:I -> 82.27 | K182: 1
A183: 181 | B183: 2022081706720 | C183: 谢庆锋 | D183: 凌海市凌水小镇学校（小学部）-音乐教师 | E183: 2163 | F183: 74.23 | G183: 29.69 | H183: 86.6 | I183: 51.96 | J183: 81.65 | K183: 2
A184: 182 | B184: 2022081706804 | C184: 黄芙蕖 | D184: 凌海市凌水小镇学校（小学部）-科学教师 | E184: 2164 | F184: 79.02 | G184: 31.61 | H184: 90.6 | I184: 54.36 | J184: 85.97 | K184: 1
A185: 183 | B185: 2022081706811 | C185: 何金秀 | D185: 凌海市凌水小镇学校（小学部）-科学教师 | E185: 2164 | F185: 81.73 | G185: 32.69 | H185: 0 | I185: 0 | J185: 32.69 | K185: 2
A186: 184 | B186: 2022081706820 | C186: 林思宇 | D186: 凌海市凌水小镇学校（初中部）-政治（道德与法治）教师 | E186: 2165 | F186: 79.54 | G186: 31.82 | H186: 88.8 | I186: 53.28 | J186: 85.10 | K186: 1
A187: 185 | B187: 2022081706813 | C187: 毛月 | D187: 凌海市凌水小镇学校（初中部）-政治（道德与法治）教师 | E187: 2165 | F187: 67.09 | G187: 26.84 | H187: 87.6 | I187: 52.56 | J187: 79.40 | K187: 2
A188: 186 | B188: 2022081707329 | C188: 魏思宇 | D188: 凌海市谢屯乡中心小学-语文教师 | E188: 2166 | F188: 88.21 | G188: 35.28 | H188: 87 | I188: 52.2 | J188: 87.48 | K188: 1
A189: 187 | B189: 2022081707301 | C189: 周旭 | D189: 凌海市谢屯乡中心小学-语文教师 | E189: 2166 | F189: 84.34 | G189: 33.74 | H189: 83.4 | I189: 50.04 | J189: 83.78 | K189: 2
A190: 188 | B190: 2022081707808 | C190: 徐曼 | D190: 凌海市谢屯乡中心小学-数学教师 | E190: 2167 | F190: 86.74 | G190: =F:F*0.4 -> 34.70 | H190: 91 | I190: =H:H*0.6 -> 54.6 | J190: =G:G+I:I -> 89.30 | K190: 1
A191: 189 | B191: 2022081707630 | C191: 陈影 | D191: 凌海市谢屯乡中心小学-数学教师 | E191: 2167 | F191: 90.35 | G191: =F:F*0.4 -> 36.14 | H191: 86.8 | I191: =H:H*0.6 -> 52.08 | J191: =G:G+I:I -> 88.22 | K191: 2
A192: 190 | B192: 2022081707823 | C192: 佟旭东 | D192: 凌海市温滴楼镇中心小学-体育教师 | E192: 2168 | F192: 81.28 | G192: 32.51 | H192: 88 | I192: 52.8 | J192: 85.31 | K192: 1
A193: 191 | B193: 2022081707906 | C193: 曹娜 | D193: 凌海市温滴楼镇中心小学-体育教师 | E193: 2168 | F193: 76.63 | G193: 30.65 | H193: 90.8 | I193: 54.48 | J193: 85.13 | K193: 2
A194: 192 | B194: 2022081708403 | C194: 王悦梦 | D194: 凌海市三台子镇中心小学-语文教师 | E194: 2169 | F194: 82.44 | G194: 32.98 | H194: 86.2 | I194: 51.72 | J194: 84.70 | K194: 1
A195: 193 | B195: 2022081708201 | C195: 崔禹 | D195: 凌海市三台子镇中心小学-语文教师 | E195: 2169 | F195: 81.48 | G195: 32.59 | H195: 83.1 | I195: 49.86 | J195: =G:G+I:I -> 82.45 | K195: 2
A196: 194 | B196: 2022081708626 | C196: 郑莹莹 | D196: 凌海市三台子镇大中中心小学-语文教师 | E196: 2170 | F196: 85.3 | G196: 34.12 | H196: 87.8 | I196: 52.68 | J196: 86.80 | K196: 1
A197: 195 | B197: 2022081708413 | C197: 殷亚楠 | D197: 凌海市三台子镇大中中心小学-语文教师 | E197: 2170 | F197: 85.05 | G197: 34.02 | H197: 79.6 | I197: 47.76 | J197: 81.78 | K197: 2
A198: 196 | B198: 2022081708914 | C198: 何艺 | D198: 凌海市余积镇中心小学-英语教师 | E198: 2171 | F198: 92.55 | G198: 37.02 | H198: 83.6 | I198: 50.16 | J198: 87.18 | K198: 1
A199: 197 | B199: 2022081709016 | C199: 李子薇 | D199: 凌海市余积镇中心小学-英语教师 | E199: 2171 | F199: 90.62 | G199: 36.25 | H199: 82 | I199: 49.2 | J199: 85.45 | K199: 2
A200: 198 | B200: 2022081709118 | C200: 朱禹豪 | D200: 凌海市金城街道中心小学-体育教师 | E200: 2172 | F200: 92.55 | G200: 37.02 | H200: 87.8 | I200: 52.68 | J200: 89.70 | K200: 1
... 54 more rows

Sheet Sheet2

Sheet Sheet3
